bitfinex/quotes_ETHUSD_20251004
["timestamp","ask_amount","ask_price","bid_price","bid_amount"]
[1759589595897,0.1112,4481.3,4481.0,2.2428426]
[1759589596059,0.1112,4481.3,4481.1,2.514]
[1759589596267,0.1112,4481.3,4481.2,2.52524349]
[1759589599546,0.002,4481.6,4481.2,2.97773202]
[1759589599861,0.002,4481.6,4481.3,2.52977981]
[1759589600074,0.002,4481.6,4481.4,0.0112405]
[1759589600269,0.002,4481.6,4481.5,2.81228903]
[1759589602148,0.002,4481.8,4481.7,2.23129615]
[1759589602454,0.002,4481.8,4481.7,3.30380712]
[1759589602654,0.002,4481.8,4481.7,3.34680712]
[1759589603080,0.002,4481.8,4481.7,5.57810327]
[1759589603290,0.002,4481.8,4481.7,3.06410327]
[1759589603493,0.002,4481.8,4481.7,5.57810327]
[1759589603648,0.002,4481.8,4481.7,20.07810327]
[1759589604092,0.002,4481.8,4481.7,17.80380712]
[1759589604791,0.002,4481.8,4481.7,20.03510327]
[1759589605294,0.1112,4483.0,4482.3,2.23098157]
[1759589605503,0.1112,4483.2,4482.4,2.96020763]
[1759589605647,0.1112,4483.2,4482.5,2.514]
[1759589605852,0.475,4483.1,4482.5,2.514]
[1759589606351,0.475,4483.1,4482.5,2.52522681]
[1759589606690,0.1112,4483.2,4482.5,2.52522681]
[1759589606888,0.1112,4483.2,4482.5,5.05441377]
[1759589607184,0.1112,4483.2,4482.5,5.04318696]
[1759589607388,0.1112,4483.2,4482.5,5.82634441]
[1759589607575,0.475,4483.6,4482.5,5.82634441]
[1759589607782,0.1112,4483.4,4482.8,2.23074863]
[1759589607978,0.1112,4483.6,4482.8,5.05426074]
[1759589608179,0.1112,4483.6,4482.8,5.19723766]
[1759589608486,0.475,4483.3,4482.8,2.6252]
[1759589608688,0.485,4482.9,4482.8,0.1112]
[1759589608874,0.485,4482.9,4482.8,2.514]
[1759589609075,0.485,4482.9,4482.5,2.34209152]
[1759589609280,0.4558,4482.8,4482.6,2.514]
[1759589609454,0.4558,4482.7,4482.6,2.514]
[1759589610067,0.4558,4482.7,4481.0,0.001]
[1759589610068,0.48368498,4482.7,4481.0,0.001]
[1759589610412,2.23124205,4481.9,4481.0,0.01223753]
[1759589610613,2.23124205,4481.9,4481.0,0.001]
[1759589610761,2.23126846,4481.8,4481.0,0.001]
[1759589611102,2.23103746,4482.3,4481.1,2.23159492]
[1759589611400,2.23110753,4482.1,4481.2,0.01123852]
[1759589611611,0.4558,4482.0,4481.2,0.01123852]
[1759589611767,0.4558,4482.0,4481.3,2.514]
[1759589611966,0.4558,4482.0,4481.4,0.01123901]
[1759589615799,2.68695351,4482.0,4481.4,0.01123901]
[1759589616006,2.68695351,4482.0,4481.5,0.2525239]
[1759589616173,2.25896358,4482.2,4481.5,0.2525239]
[1759589616373,2.68694366,4482.1,4481.5,0.2525239]
[1759589616669,0.4558,4482.1,4481.5,0.2525239]
[1759589617004,2.23115791,4482.0,4481.6,0.27665239]
[1759589617164,2.23115791,4482.0,4481.7,2.514]
[1759589617366,0.4558,4481.9,4481.7,2.514]
[1759589617711,0.4558,4481.8,4481.7,2.514]
[1759589617882,0.3058,4481.8,4481.7,2.514]
[1759589619507,0.002,4482.1,4481.7,2.514]
[1759589620101,0.1112,4481.9,4481.7,2.514]
[1759589620274,0.4558,4481.8,4481.7,2.514]
[1759589620908,0.4558,4481.8,4481.5,0.001]
[1759589621075,0.4558,4481.8,4481.7,2.516]
[1759589623784,2.68704637,4481.8,4481.7,2.516]
[1759589624628,0.4558,4481.8,4481.7,2.516]
[1759589625809,2.68704637,4481.8,4481.5,0.001]
[1759589626010,2.23134594,4481.6,4481.5,0.001]
[1759589626212,2.34254594,4481.6,4481.5,2.516]
[1759589626428,2.79834594,4481.6,4481.5,2.516]
[1759589626946,2.79834594,4481.6,4481.5,0.001]
[1759589627129,2.79834594,4481.6,4481.5,2.517]
[1759589628805,3.19289429,4481.6,4481.5,0.001]
[1759589629135,5.59289429,4481.6,4481.5,0.001]
[1759589637813,8.10889429,4481.6,4481.5,0.001]
[1759589638916,8.22009429,4481.6,4481.5,0.001]
[1759589640222,7.76429429,4481.6,4481.5,0.001]
[1759589640418,5.24829429,4481.6,4481.5,0.001]
[1759589640851,5.69429429,4481.6,4481.5,0.001]
[1759589642438,5.24829429,4481.6,4481.5,0.001]
[1759589642646,5.13709429,4481.6,4481.5,0.001]
[1759589645337,4.63134594,4481.6,4481.5,0.001]
[1759589647341,5.07734594,4481.6,4481.5,0.001]
[1759589650640,2.4,4481.5,4480.8,1e-08]
[1759589650877,2.23169452,4480.9,4480.8,1e-08]
[1759589651179,5.34592236,4480.9,4480.8,1e-08]
[1759589651340,5.76402618,4480.9,4480.8,1e-08]
[1759589652779,5.31802618,4480.9,4480.8,1e-08]
[1759589652983,5.76402618,4480.9,4480.8,1e-08]
[1759589653479,8.28002618,4480.9,4480.8,1e-08]
[1759589662913,8.39122618,4480.9,4480.8,1e-08]
[1759589663592,8.39122618,4480.9,4479.5,0.15300001]
[1759589663593,2.23234217,4479.6,4479.5,0.15300001]
[1759589663976,2.23234217,4479.6,4479.5,0.10300001]
[1759589666037,0.02790303,4479.8,4479.5,0.10300001]
[1759589666237,2.26005084,4480.0,4479.6,0.103]
[1759589666447,2.23219268,4479.9,4479.6,0.103]
[1759589666838,2.23229234,4479.7,4479.6,0.103]
[1759589667152,2.26015362,4479.8,4479.3,0.103]
[1759589667440,2.2323869,4479.6,4479.3,0.103]
[1759589667642,2.23244647,4479.4,4479.1,0.02126517]
[1759589667820,2.23240336,4479.5,4479.1,0.01]
[1759589668026,2.23240336,4479.5,4479.1,0.2626]
[1759589668212,2.23240336,4479.5,4479.2,0.103]
[1759589668407,2.23240336,4479.5,4479.1,0.2626]
[1759589668613,2.23240336,4479.5,4479.2,0.103]
[1759589668817,0.4301,4480.2,4479.1,0.2626]
[1759589669053,2.23234174,4479.7,4479.1,0.2626]
[1759589669263,2.23236031,4479.6,4479.1,0.3656]
[1759589669432,2.23236031,4479.6,4479.1,0.2626]
[1759589669627,2.23240183,4479.5,4479.2,0.103]
[1759589670867,0.02790365,4479.7,4479.3,0.11426665]
[1759589671074,0.02790365,4479.7,4479.4,0.103]
[1759589671423,2.23237699,4479.6,4479.4,0.103]
[1759589671639,0.02790365,4479.7,4479.4,0.103]
[1759589671854,0.02790365,4479.7,4479.2,0.01126665]
[1759589671855,2.26020071,4479.7,4479.2,0.01126665]
[1759589672119,2.2324374,4479.5,4479.2,0.11426665]
[1759589672350,2.23249168,4479.3,4479.2,0.11426665]
[1759589672549,2.23249168,4479.3,4479.2,0.01126665]
[1759589672751,2.23254152,4479.2,4479.1,0.011]
[1759589673154,5.1596599,4479.2,4478.1,0.01]
[1759589673353,2.23283294,4478.7,4478.6,0.001]
[1759589673569,4.74483294,4478.7,4478.6,0.001]
[1759589673774,2.23305174,4478.2,4477.0,0.00316284]
[1759589673973,2.23305174,4478.2,4473.5,5.19664429]
[1759589673974,2.23378828,4476.7,4474.9,1.59659313]
[1759589674130,4.77771063,4476.7,4475.0,0.11430436]
[1759589674335,7.14978828,4476.7,4475.0,0.103]
[1759589674646,7.14978828,4476.7,4475.5,1.21309918]
[1759589674647,2.9505,4476.7,4475.5,1.21309918]
[1759589674846,2.23428737,4475.7,4475.6,0.01130284]
[1759589675046,2.23428737,4475.7,4475.6,0.1224402]
[1759589675281,2.23420014,4475.9,4475.5,1.21309918]
[1759589675437,2.23382113,4476.7,4475.6,0.11431279]
[1759589675637,0.0279211,4476.9,4475.6,0.24705399]
[1759589675833,0.02791736,4477.5,4475.7,2.62]
[1759589676034,0.02791736,4477.5,4475.6,0.1327412]
[1759589676235,2.23355158,4477.2,4475.6,2.23433729]
[1759589676554,2.2334059,4477.5,4475.7,14.603]
[1759589676879,0.02791798,4477.4,4475.8,2.62]
[1759589677080,0.03791487,4477.9,4475.9,0.74790258]
[1759589677282,0.01,4477.9,4475.9,0.64490258]
[1759589677573,2.2332922,4477.7,4476.5,2.2338411]
[1759589677773,0.03791487,4477.9,4476.6,0.103]
[1759589677972,0.01,4477.9,4476.7,0.01129409]
[1759589678181,0.01,4477.9,4477.0,2.23360906]
[1759589678386,0.23710538,4477.9,4477.1,0.1142911]
[1759589678566,0.01,4477.9,4477.2,2.23353881]
[1759589678878,0.01,4477.9,4477.1,0.1142911]
[1759589678879,0.01,4477.9,4477.4,2.23342724]
[1759589679039,0.01,4477.9,4477.5,0.1142881]
[1759589679237,0.01,4477.9,4477.6,2.517]
[1759589679456,0.01,4477.9,4477.7,0.0112866]
[1759589679856,0.01,4477.9,4477.8,0.103]
[1759589680061,0.01,4477.9,4477.6,2.517]
[1759589680257,0.01,4477.9,4476.7,14.5]
[1759589680258,0.01,4477.9,4477.7,2.517]
[1759589680693,2.23330661,4477.7,4477.4,0.103]
[1759589680890,2.243223,4477.9,4477.5,2.62]
[1759589681052,2.23324565,4477.8,4477.5,2.62]
[1759589681560,2.23333928,4477.6,4476.7,14.5]
[1759589681765,2.23333928,4477.6,4477.1,0.103]
[1759589681955,0.01,4477.9,4476.7,0.103]
[1759589682156,0.01,4477.9,4476.8,2.517]
[1759589682369,2.23363859,4477.0,4476.9,2.517]
[1759589682768,2.23363859,4477.0,4475.5,3.61309918]
[1759589682769,2.23374237,4476.8,4476.3,0.103]
[1759589682969,2.23375447,4476.8,4476.3,0.103]
[1759589683284,2.23374816,4476.8,4476.4,2.62]
[1759589683446,2.23374816,4476.8,4476.5,0.262]
[1759589683643,0.02791736,4477.5,4476.5,0.262]
[1759589683985,2.23387731,4476.6,4475.9,0.103]
[1759589684153,2.23387731,4476.6,4476.0,0.12330682]
[1759589684368,2.23373838,4476.8,4476.1,2.517]
[1759589684699,2.23395481,4476.4,4476.2,0.01130332]
[1759589684881,0.112,4476.9,4476.2,2.517]
[1759589685082,2.23391069,4476.5,4476.3,0.27420207]
[1759589685283,0.112,4476.9,4476.3,0.27420207]
[1759589685470,2.23373838,4476.8,4476.3,0.2629]
[1759589685656,2.23408771,4476.1,4476.0,0.112]
[1759589685862,2.23408771,4476.1,4476.0,2.517]
[1759589686085,2.23373838,4476.8,4475.5,1.31609918]
[1759589686086,2.23406721,4476.2,4475.9,2.517]
[1759589686590,2.23409713,4476.1,4475.9,2.517]
[1759589688390,0.112,4476.4,4475.9,2.517]
[1759589688559,2.23403017,4476.3,4475.9,2.7799]
[1759589688904,2.23404193,4476.2,4475.9,2.517]
[1759589689062,0.112,4476.4,4475.9,2.517]
[1759589689262,0.46241861,4477.3,4476.0,0.11430681]
[1759589689493,0.112,4476.8,4476.1,0.112]
[1759589689703,0.112,4476.8,4476.2,0.01130332]
[1759589689905,2.23379225,4476.7,4476.4,0.112]
[1759589690062,2.23373887,4476.8,4476.4,0.112]
[1759589690258,2.23384944,4476.6,4476.4,0.112]
[1759589691012,2.23388808,4476.5,4476.4,0.112]
[1759589691786,0.112,4477.0,4476.4,0.215]
[1759589691984,0.112,4477.0,4476.5,2.517]
[1759589692212,2.23368848,4476.9,4476.5,2.517]
[1759589692688,0.112,4477.0,4476.5,2.517]
[1759589693421,2.23383818,4476.6,4476.5,2.517]
[1759589693588,0.112,4477.0,4476.5,2.517]
[1759589693916,0.112,4477.0,4476.6,0.01129932]
[1759589694117,0.112,4477.0,4476.6,0.27532925]
[1759589694317,0.112,4477.3,4476.6,0.27532925]
[1759589694531,0.002,4477.4,4476.9,0.112]
[1759589695030,50.0,4477.0,4476.9,0.112]
[1759589695565,50.0,4477.0,4476.9,0.22629657]
[1759589695833,50.0,4477.0,4476.9,2.44868848]
[1759589696484,50.0,4477.0,4476.9,3.08228848]
[1759589696829,50.0,4477.0,4476.9,3.86569485]
[1759589697039,50.0,4477.0,4476.9,12.00235142]
[1759589697234,44.69662318,4477.0,4476.9,11.99105485]
[1759589697399,44.69662318,4477.0,4476.9,26.49105485]
[1759589697604,44.69662318,4477.0,4476.9,32.12754285]
[1759589697787,42.55553128,4477.0,4476.9,31.63771985]
[1759589697986,42.55553128,4477.0,4476.9,30.76075485]
[1759589698233,37.25215446,4477.0,4476.9,30.76075485]
[1759589698530,0.002,4477.4,4477.3,5.26708893]
[1759589698766,0.002,4477.4,4477.3,10.59639693]
[1759589698914,0.002,4477.4,4477.3,10.69939693]
[1759589699113,0.002,4477.4,4477.3,10.81139693]
[1759589699403,0.002,4477.4,4477.3,10.96802193]
[1759589699708,0.002,4477.4,4477.3,9.54900923]
[1759589699878,0.002,4477.4,4477.3,12.95733223]
[1759589700591,0.002,4477.4,4477.3,12.32373223]
[1759589700796,0.002,4477.4,4477.3,13.60949023]
[1759589700975,0.002,4477.4,4477.3,11.62845923]
[1759589701707,0.002,4477.4,4477.3,18.26909823]
[1759589701895,0.002,4477.4,4477.3,20.26414011]
[1759589702098,0.002,4477.4,4477.3,18.92570009]
[1759589702278,0.002,4477.4,4477.3,18.4479203]
[1759589702486,0.002,4477.4,4477.3,25.94811223]
[1759589702802,0.002,4477.4,4477.3,26.39630523]
[1759589703166,0.002,4477.4,4477.3,27.02990523]
[1759589703816,0.002,4477.4,4477.3,23.93700923]
[1759589703986,0.002,4477.4,4477.3,28.61016223]
[1759589704494,0.002,4477.4,4477.3,23.19940923]
[1759589705026,0.002,4477.4,4477.3,27.33251123]
[1759589705378,0.002,4477.4,4477.3,28.61714923]
[1759589705575,0.002,4477.4,4477.3,27.66809923]
[1759589706492,0.002,4477.4,4477.3,27.44580223]
[1759589707627,0.002,4477.4,4477.3,27.34160823]
[1759589708580,0.002,4477.4,4477.3,31.11734623]
[1759589708910,0.002,4477.4,4477.3,30.65719423]
[1759589709081,0.002,4477.4,4477.3,28.13919423]
[1759589709283,0.002,4477.4,4477.3,30.65719423]
[1759589709610,0.002,4477.4,4477.3,31.71881623]
[1759589709815,0.002,4477.4,4477.3,26.89324423]
[1759589710035,0.002,4477.4,4477.3,23.57481923]
[1759589710215,0.4672,4477.4,4477.3,1.5479203]
[1759589710512,0.4672,4477.4,4477.3,2.518]
[1759589710745,0.002,4477.4,4477.3,4.75148893]
[1759589711746,0.002,4477.4,4477.0,14.5]
[1759589711944,0.002,4477.4,4477.3,2.34548893]
[1759589712147,0.002,4477.4,4477.3,4.50519667]
[1759589712346,0.002,4477.4,4477.3,7.02319667]
[1759589714708,0.002,4477.4,4477.3,15.80027467]
[1759589714937,0.002,4477.4,4477.3,16.85575067]
[1759589715150,0.002,4477.4,4477.3,14.41214667]
[1759589715647,0.002,4477.4,4477.3,29.54574667]
[1759589715810,0.002,4477.4,4477.3,24.49051367]
[1759589716009,0.002,4477.4,4477.3,26.90540267]
[1759589716839,0.002,4477.4,4477.3,35.74148467]
[1759589717251,0.002,4477.4,4477.3,29.25567867]
[1759589717948,0.002,4477.4,4477.3,29.26353467]
[1759589718974,0.002,4477.4,4477.3,28.50653467]
[1759589719176,0.002,4477.4,4477.3,27.18563067]
[1759589719392,0.002,4477.4,4477.3,27.77196618]
[1759589719942,0.002,4477.4,4477.3,38.02460518]
[1759589720178,0.01,4477.9,4477.8,2.86683953]
[1759589720347,0.01,4477.9,4477.8,16.146848]
[1759589720543,0.01,4477.9,4477.8,16.24756265]
[1759589720742,0.01,4477.9,4477.8,16.35056265]
[1759589720981,0.01,4477.9,4477.8,25.83615065]
[1759589721177,0.01,4477.9,4477.8,25.59159165]
[1759589721382,0.01,4477.9,4477.8,24.52400765]
[1759589721752,0.01,4477.9,4477.8,24.42100765]
[1759589721953,0.01,4477.9,4477.8,7.09286547]
[1759589722182,0.01,4477.9,4477.8,8.01325465]
[1759589722183,0.4577,4477.9,4477.8,8.01325465]
[1759589722539,0.4577,4477.9,4477.8,3.26201512]
[1759589722742,0.4577,4477.9,4477.8,8.01325465]
[1759589724079,0.01,4477.9,4477.8,8.01325465]
[1759589724294,0.01,4477.9,4477.8,10.27916565]
[1759589725156,0.01,4477.9,4477.8,11.87677647]
[1759589725346,0.01,4477.9,4477.8,12.27913847]
[1759589725546,0.01,4477.9,4477.8,10.68152765]
[1759589726009,0.01,4477.9,4477.8,12.28365136]
[1759589726212,0.01,4477.9,4477.8,10.68152765]
[1759589727305,0.01,4477.9,4477.8,10.55352765]
[1759589727619,0.01,4477.9,4477.8,8.01325465]
[1759589727913,0.012,4477.9,4477.8,8.01325465]
[1759589728215,0.012,4477.9,4477.8,10.25325165]
[1759589728420,0.012,4477.9,4477.8,10.12525165]
[1759589729134,0.012,4477.9,4477.8,10.75885165]
[1759589729468,0.012,4477.9,4477.8,19.78099465]
[1759589729594,0.012,4477.9,4477.8,18.34099465]
[1759589729784,0.012,4477.9,4477.8,17.02320665]
[1759589730305,0.012,4477.9,4477.8,8.64685465]
[1759589730707,0.012,4477.9,4477.8,14.44232865]
[1759589731518,0.012,4477.9,4477.8,14.51255065]
[1759589732017,0.012,4477.9,4477.8,12.11255065]
[1759589732613,0.012,4477.9,4477.8,14.77030565]
[1759589733190,0.012,4477.9,4477.8,17.17030565]
[1759589733379,0.012,4477.9,4477.8,8.64685465]
[1759589734007,0.012,4477.9,4477.8,10.79152665]
[1759589735426,0.012,4477.9,4477.8,12.84436365]
[1759589735584,0.012,4477.9,4477.8,13.15592965]
[1759589735780,0.012,4477.9,4477.8,13.18849565]
[1759589735983,0.012,4477.9,4477.8,11.40328165]
[1759589736210,0.012,4477.9,4477.8,11.75100965]
[1759589736696,0.012,4477.9,4477.8,12.53211165]
[1759589736891,0.012,4477.9,4477.8,13.35461765]
[1759589737122,0.012,4477.9,4477.8,12.99592965]
[1759589737326,0.012,4477.9,4477.8,12.09887365]
[1759589737548,0.012,4477.9,4477.8,8.64685465]
[1759589738210,0.4643,4477.9,4477.8,8.64685465]
[1759589738411,0.4643,4477.9,4477.8,8.64485465]
[1759589739220,0.4643,4477.9,4477.8,3.89561512]
[1759589739418,0.4643,4477.9,4477.8,2.516]
[1759589740555,0.4643,4477.9,4477.4,3.83603134]
[1759589740715,0.012,4477.9,4477.5,4.74936867]
[1759589741019,0.4523,4477.8,4477.6,2.516]
[1759589741219,0.4523,4477.7,4477.6,2.516]
[1759589741424,0.4523,4477.7,4477.6,4.74933928]
[1759589741625,0.4523,4477.7,4477.6,4.51095826]
[1759589741819,0.4523,4477.7,4477.6,4.79361898]
[1759589742707,0.4523,4477.7,4477.6,2.27761898]
[1759589743145,0.4523,4477.7,4477.6,7.0382461]
[1759589743447,0.4523,4477.7,4477.6,7.02695826]
[1759589744149,0.4523,4477.7,4477.6,4.79361898]
[1759589744336,0.4523,4477.7,4477.3,14.501]
[1759589744536,0.4523,4477.6,4477.3,0.001]
[1759589744739,0.4523,4477.6,4477.4,2.516]
[1759589744941,0.4523,4477.5,4477.4,2.516]
[1759589746425,0.4523,4477.5,4477.3,0.001]
[1759589746629,0.4523,4477.5,4477.4,2.516]
[1759589748657,0.4523,4477.5,4477.3,0.001]
[1759589748861,0.4523,4477.5,4477.4,2.516]
[1759589749232,0.4523,4477.5,4477.3,0.001]
[1759589749432,2.68572772,4477.5,4477.4,2.516]
[1759589749652,0.4523,4477.5,4477.4,2.516]
[1759589751673,2.68568916,4477.5,4477.4,2.516]
[1759589751878,2.23343904,4477.4,4477.3,0.113]
[1759589752476,2.23343904,4477.4,4477.3,2.517]
[1759589752477,2.69353904,4477.4,4477.3,2.517]
[1759589753441,3.19742701,4477.4,4477.3,2.517]
[1759589753947,3.19742701,4477.4,4477.3,0.001]
[1759589754147,3.19742701,4477.4,4477.3,2.517]
[1759589755737,3.19742701,4477.4,4477.3,0.001]
[1759589755971,3.19742701,4477.4,4477.3,2.518]
[1759589756173,3.30942701,4477.4,4477.3,2.518]
[1759589757071,3.30942701,4477.4,4477.3,0.001]
[1759589757265,3.30942701,4477.4,4477.3,0.361]
[1759589757644,3.30942701,4477.4,4477.3,0.001]
[1759589759256,5.70942701,4477.4,4477.3,0.001]
[1759589767319,5.70942701,4477.4,4476.8,1e-08]
[1759589767320,2.23368848,4476.9,4476.8,1e-08]
[1759589767463,2.26160958,4476.9,4476.8,1e-08]
[1759589767668,2.37360958,4476.9,4476.8,1e-08]
[1759589773108,2.83370958,4476.9,4476.8,1e-08]
[1759589773409,2.80578848,4476.9,4476.8,1e-08]
[1759589774412,3.30972913,4476.9,4476.8,1e-08]
[1759589775996,3.33765023,4476.9,4476.8,1e-08]
[1759589776418,5.85565023,4476.9,4476.8,1e-08]
[1759589776741,5.82772913,4476.9,4476.8,1e-08]
[1759589777436,8.11572913,4476.9,4476.8,1e-08]
[1759589780638,8.78641919,4476.9,4476.8,1e-08]
[1759589780797,5.59772913,4476.9,4476.8,1e-08]
[1759589780996,8.11572913,4476.9,4476.8,1e-08]
[1759589786232,8.59140106,4476.9,4476.8,1e-08]
[1759589787335,8.70340106,4476.9,4476.8,1e-08]
[1759589788340,12.99069097,4476.9,4476.8,1e-08]
[1759589793100,13.66138103,4476.9,4476.8,1e-08]
[1759589802712,9.37409112,4476.9,4476.8,1e-08]
[1759589802919,13.66138103,4476.9,4476.8,1e-08]
[1759589803140,13.66338103,4476.9,4476.8,1e-08]
[1759589806145,9.37609112,4476.9,4476.8,1e-08]
[1759589806359,13.66338103,4476.9,4476.8,1e-08]
[1759589809462,8.43931919,4476.9,4476.8,1e-08]
[1759589809663,13.20346279,4476.9,4476.8,1e-08]
[1759589811237,13.20343688,4476.9,4476.8,1e-08]
[1759589811440,2.2354795,4477.4,4476.8,0.10300001]
[1759589811441,0.002,4477.4,4476.8,0.10300001]
[1759589812999,2.23349064,4477.3,4476.8,0.10300001]
[1759589813964,0.002,4477.4,4476.8,0.10300001]
[1759589813965,2.23544744,4477.4,4476.8,0.10300001]
[1759589814683,0.002,4477.4,4476.8,0.10300001]
[1759589814887,0.002,4477.4,4476.9,0.262]
[1759589815267,0.002,4477.4,4477.0,0.103]
[1759589815972,0.002,4477.4,4477.1,0.11429358]
[1759589817263,0.002,4477.4,4477.1,0.103]
[1759589818665,0.002,4477.4,4477.2,0.01129283]
[1759589818989,0.002,4477.4,4477.3,0.23478345]
[1759589819185,0.002,4477.4,4477.3,0.33778345]
[1759589819592,0.002,4477.4,4477.3,0.103]
[1759589820608,0.002,4477.4,4477.3,0.11429159]
[1759589821094,0.002,4477.4,4477.3,0.103]
[1759589821602,0.002,4477.4,4477.3,0.112]
[1759589821805,0.114,4477.4,4477.3,2.516]
[1759589821976,0.114,4477.4,4477.1,2.516]
[1759589822176,0.002,4477.4,4477.2,0.01129283]
[1759589823894,0.002,4477.4,4477.1,0.2628]
[1759589824094,0.002,4477.4,4477.1,2.516]
[1759589826304,0.002,4477.4,4476.8,0.21500001]
[1759589826305,2.23351843,4477.3,4476.8,0.11200001]
[1759589826532,2.23351843,4477.3,4477.2,2.516]
[1759589826708,2.23351843,4477.3,4476.8,0.11200001]
[1759589826907,2.26149836,4477.2,4476.8,1e-08]
[1759589827212,0.002,4477.4,4476.8,1e-08]
[1759589827213,2.26152581,4477.1,4476.8,1e-08]
[1759589827413,0.112,4476.9,4476.8,1e-08]
[1759589830019,2.34554002,4477.2,4476.8,1e-08]
[1759589830217,2.2336128,4477.1,4476.8,1e-08]
[1759589831357,0.002,4477.4,4476.9,0.103]
[1759589831557,0.002,4477.4,4477.0,0.215]
[1759589832054,2.23544853,4477.4,4477.0,0.112]
[1759589832363,0.002,4477.4,4477.0,0.215]
[1759589832557,0.002,4477.4,4477.1,0.103]
[1759589833064,0.002,4477.4,4477.0,0.112]
[1759589833358,0.002,4477.4,4477.1,2.516]
[1759589833520,2.23349376,4477.3,4477.2,2.516]
[1759589833719,0.002,4477.4,4477.2,2.516]
[1759589833720,2.23544143,4477.4,4477.2,2.516]
[1759589833926,2.23348893,4477.3,4477.2,2.516]
[1759589834119,2.23348893,4477.3,4476.8,0.11200001]
[1759589834359,2.23348893,4477.3,4476.9,2.516]
[1759589834722,2.23356482,4477.2,4476.9,2.516]
[1759589835646,2.23348893,4477.3,4476.8,0.11200001]
[1759589835962,0.112,4477.2,4476.9,2.516]
[1759589836168,2.23359265,4477.1,4476.9,2.516]
[1759589836933,0.112,4477.2,4476.9,2.516]
[1759589837154,0.112,4477.2,4476.9,2.619]
[1759589837340,0.112,4477.2,4476.9,2.516]
[1759589837766,2.23544088,4477.4,4477.0,0.01129533]
[1759589837767,0.002,4477.4,4477.0,0.01129533]
[1759589838070,0.114,4477.4,4476.9,2.516]
[1759589838367,2.23349151,4477.3,4476.9,2.516]
[1759589838601,2.23353843,4477.3,4476.9,2.516]
[1759589838780,2.23348893,4477.3,4476.9,2.516]
[1759589839661,2.2335507,4477.2,4476.9,2.516]
[1759589839865,2.23349696,4477.3,4476.9,2.516]
[1759589840066,2.34745149,4477.4,4476.9,2.516]
[1759589840440,2.23549495,4477.3,4476.9,2.516]
[1759589840640,2.23354138,4477.2,4476.9,2.516]
[1759589841173,0.002,4477.3,4477.0,0.01129533]
[1759589841375,0.002,4477.3,4477.0,0.38852486]
[1759589841581,0.002,4477.3,4477.1,0.103]
[1759589841878,0.002,4477.3,4477.2,0.01129333]
[1759589842384,0.002,4477.3,4477.2,2.516]
[1759589842557,0.002,4477.3,4476.8,0.11200001]
[1759589842745,2.78584337,4477.2,4476.9,0.01129558]
[1759589842945,2.78584337,4477.2,4476.9,2.516]
[1759589843146,0.5523,4477.2,4477.0,2.516]
[1759589843594,0.5523,4477.2,4476.8,1e-08]
[1759589843595,2.78585009,4477.2,4477.1,2.516]
[1759589843792,0.5523,4477.2,4477.1,2.516]
[1759589843948,0.86198692,4477.2,4476.8,1e-08]
[1759589844153,2.34568848,4476.9,4476.8,2.51600001]
[1759589844581,2.78598848,4476.9,4476.8,2.51600001]
[1759589847159,2.78598848,4476.9,4476.8,1e-08]
[1759589848960,0.5523,4476.9,4476.8,1e-08]
[1759589849514,2.78598848,4476.9,4476.8,1e-08]
[1759589851940,2.23361303,4477.1,4476.8,1e-08]
[1759589852104,0.112,4477.1,4476.8,1e-08]
[1759589852603,0.112,4477.1,4476.8,0.01129684]
[1759589853125,2.34749596,4477.3,4476.8,1e-08]
[1759589854747,0.114,4477.3,4476.8,1e-08]
[1759589855502,2.34749016,4477.3,4476.8,1e-08]
[1759589855941,2.82059016,4477.3,4476.8,1e-08]
[1759589856449,0.5871,4477.3,4476.8,1e-08]
[1759589857002,0.61501861,4477.3,4476.8,1e-08]
[1759589858942,0.112,4477.0,4476.9,2.516]
[1759589859147,2.81873859,4477.0,4476.9,2.516]
[1759589860965,2.23368848,4476.9,4476.8,1e-08]
[1759589861269,2.23368848,4476.9,4476.8,2.51600001]
[1759589861270,2.70678848,4476.9,4476.8,2.51600001]
[1759589862247,2.23368848,4476.9,4476.8,2.51600001]
[1759589864839,2.23368848,4476.9,4476.8,1e-08]
[1759589865066,2.23368848,4476.9,4476.8,2.51600001]
[1759589866595,2.37356939,4477.0,4476.8,2.51600001]
[1759589866797,2.23368848,4476.9,4476.8,2.51600001]
[1759589867476,2.70678848,4476.9,4476.8,2.51600001]
[1759589867871,2.70678848,4476.9,4476.8,1e-08]
[1759589868195,0.4731,4476.9,4476.8,2.51600001]
[1759589868738,2.23368848,4476.9,4476.8,2.51600001]
[1759589869277,0.112,4477.0,4476.8,2.51600001]
[1759589869278,2.34564858,4477.0,4476.8,2.51600001]
[1759589869490,2.34564858,4477.0,4476.9,2.516]
[1759589869692,0.112,4477.0,4476.9,2.516]
[1759589870680,0.002,4477.3,4476.9,2.516]
[1759589870905,0.114,4477.3,4476.9,2.516]
[1759589871092,2.23357685,4477.2,4476.9,2.516]
[1759589871270,2.69277685,4477.2,4476.9,2.516]
[1759589871470,2.23360455,4477.1,4476.9,2.516]
[1759589871670,0.4592,4477.2,4476.9,2.516]
[1759589872006,2.2336344,4477.1,4476.9,2.516]
[1759589872170,2.23363859,4477.0,4476.9,2.516]
[1759589872779,2.69274287,4477.2,4476.9,2.516]
[1759589872978,0.4592,4477.2,4476.9,2.516]
[1759589873172,2.23362985,4477.1,4476.9,2.516]
[1759589873493,2.23363859,4477.0,4476.9,2.516]
[1759589875018,2.23360258,4477.1,4476.9,2.516]